[Event "Titled Tuesday Blitz October 11 Early 2022"]
[White "Ulziikhishigjargal, Ochirkhuyag"]
[Black "Harsha Bharathakoti"]
[WhiteFideId "4903188"]
[BlackFideId "5078776"]
[WhiteElo "1920"]
[BlackElo "2523"]
[Result "1-0"]
[Round "07"]
[TimeControl "180+1"]
[Date "2022.10.11"]
[WhiteClock "0:00:11"]
[BlackClock "0:00:12"]

1. d4 {[%clk 0:02:59]}  f5 {[%clk 0:02:54]} 2. Nf3 {[%clk 0:02:54]}  Nf6 {[%clk 0:02:54]} 3. c4 {[%clk 0:02:54]}  g6 {[%clk 0:02:54]} 4. g3 {[%clk 0:02:54]}  Bg7 {[%clk 0:02:55]} 5. Bg2 {[%clk 0:02:55]}  O-O {[%clk 0:02:56]} 6. O-O {[%clk 0:02:56]}  d6 {[%clk 0:02:57]} 7. Nc3 {[%clk 0:02:57]}  Qe8 {[%clk 0:02:57]} 8. d5 {[%clk 0:02:57]}  Na6 {[%clk 0:02:58]} 9. Nd4 {[%clk 0:02:57]}  Bd7 {[%clk 0:02:58]} 10. b3 {[%clk 0:02:55]}  c6 {[%clk 0:02:58]} 11. Bb2 {[%clk 0:02:54]}  Rc8 {[%clk 0:02:58]} 12. Rc1 {[%clk 0:02:53]}  Nc5 {[%clk 0:02:58]} 13. e3 {[%clk 0:02:51]}  Qf7 {[%clk 0:02:53]} 14. Qe2 {[%clk 0:02:51]}  Nce4 {[%clk 0:02:48]} 15. Rfd1 {[%clk 0:02:50]}  Nxc3 {[%clk 0:02:34]} 16. Bxc3 {[%clk 0:02:50]}  cxd5 {[%clk 0:02:34]} 17. cxd5 {[%clk 0:02:48]}  Nxd5 {[%clk 0:02:35]} 18. Bb2 {[%clk 0:02:38]}  Rxc1 {[%clk 0:02:31]} 19. Rxc1 {[%clk 0:02:37]}  Rc8 {[%clk 0:02:05]} 20. Rxc8+ {[%clk 0:02:36]}  Bxc8 {[%clk 0:02:06]} 21. Qb5 {[%clk 0:02:37]}  Nb6 {[%clk 0:01:58]} 22. Qa5 {[%clk 0:02:32]}  e5 {[%clk 0:01:50]} 23. Nb5 {[%clk 0:02:30]}  e4 {[%clk 0:01:51]} 24. Nxd6 {[%clk 0:02:24]}  Qe6 {[%clk 0:01:32]} 25. Nxc8 {[%clk 0:02:20]}  Bxb2 {[%clk 0:01:28]} 26. Nxb6 {[%clk 0:02:17]}  Qxb6 {[%clk 0:01:27]} 27. Qd5+ {[%clk 0:02:17]}  Kg7 {[%clk 0:01:27]} 28. Bf1 {[%clk 0:02:17]}  Qc7 {[%clk 0:01:25]} 29. Bc4 {[%clk 0:02:17]}  Bf6 {[%clk 0:01:09]} 30. h4 {[%clk 0:02:16]}  h5 {[%clk 0:01:06]} 31. a4 {[%clk 0:02:12]}  b6 {[%clk 0:01:05]} 32. Qg8+ {[%clk 0:02:06]}  Kh6 {[%clk 0:01:05]} 33. Kg2 {[%clk 0:02:03]}  Qg7 {[%clk 0:01:04]} 34. Qd5 {[%clk 0:02:01]}  Qe7 {[%clk 0:01:04]} 35. Qc6 {[%clk 0:02:01]}  Bg7 {[%clk 0:01:04]} 36. Be6 {[%clk 0:01:59]}  Bf6 {[%clk 0:01:04]} 37. b4 {[%clk 0:01:55]}  Kg7 {[%clk 0:01:03]} 38. a5 {[%clk 0:01:53]}  Qxb4 {[%clk 0:01:02]} 39. a6 {[%clk 0:01:47]}  Qe7 {[%clk 0:01:02]} 40. Bc4 {[%clk 0:01:47]}  Be5 {[%clk 0:01:01]} 41. Qa8 {[%clk 0:01:44]}  Kh6 {[%clk 0:00:34]} 42. Bd5 {[%clk 0:01:43]}  b5 {[%clk 0:00:32]} 43. Qg8 {[%clk 0:01:42]}  b4 {[%clk 0:00:30]} 44. Bf7 {[%clk 0:01:39]}  Bg7 {[%clk 0:00:29]} 45. Bb3 {[%clk 0:01:37]}  Qf6 {[%clk 0:00:29]} 46. Qc8 {[%clk 0:01:35]}  Qe7 {[%clk 0:00:28]} 47. Bc4 {[%clk 0:01:30]}  Bf6 {[%clk 0:00:26]} 48. Qc6 {[%clk 0:01:30]}  Kg7 {[%clk 0:00:25]} 49. Qa8 {[%clk 0:01:29]}  Qc7 {[%clk 0:00:24]} 50. Qg8+ {[%clk 0:01:28]}  Kh6 {[%clk 0:00:25]} 51. Qe6 {[%clk 0:01:23]}  Bg7 {[%clk 0:00:23]} 52. Bb3 {[%clk 0:01:19]}  Qc5 {[%clk 0:00:17]} 53. Bc4 {[%clk 0:01:17]}  Qc7 {[%clk 0:00:16]} 54. Bd5 {[%clk 0:01:16]}  Qc5 {[%clk 0:00:15]} 55. Qd7 {[%clk 0:01:12]}  Qb6 {[%clk 0:00:13]} 56. Bc4 {[%clk 0:01:12]}  Bc3 {[%clk 0:00:13]} 57. Qf7 {[%clk 0:01:05]}  Bg7 {[%clk 0:00:13]} 58. Bb3 {[%clk 0:01:05]}  Qxa6 {[%clk 0:00:13]} 59. Qe7 {[%clk 0:00:53]}  Qb6 {[%clk 0:00:13]} 60. Qg5+ {[%clk 0:00:52]}  Kh7 {[%clk 0:00:13]} 61. Qe7 {[%clk 0:00:52]}  a5 {[%clk 0:00:13]} 62. Qd7 {[%clk 0:00:48]}  Qc5 {[%clk 0:00:13]} 63. Qd8 {[%clk 0:00:44]}  Qc3 {[%clk 0:00:12]} 64. Bg8+ {[%clk 0:00:44]}  Kh8 {[%clk 0:00:12]} 65. Bf7+ {[%clk 0:00:42]}  Kh7 {[%clk 0:00:13]} 66. Bg8+ {[%clk 0:00:41]}  Kh8 {[%clk 0:00:13]} 67. Bf7+ {[%clk 0:00:38]}  Kh7 {[%clk 0:00:14]} 68. Qxa5 {[%clk 0:00:20]}  Qf6 {[%clk 0:00:11]} 69. Bb3 {[%clk 0:00:17]}  Qe7 {[%clk 0:00:10]} 70. Qd5 {[%clk 0:00:16]}  Bf6 {[%clk 0:00:10]} 71. Qg8+ {[%clk 0:00:16]}  Kh6 {[%clk 0:00:11]} 72. Qb8 {[%clk 0:00:17]}  Bg7 {[%clk 0:00:11]} 73. Qf4+ {[%clk 0:00:17]}  Kh7 {[%clk 0:00:12]} 74. Qb8 {[%clk 0:00:17]}  Qf6 {[%clk 0:00:12]} 75. Qxb4 {[%clk 0:00:16]}  Qd8 {[%clk 0:00:11]} 76. Qc4 {[%clk 0:00:16]}  Qe8 {[%clk 0:00:11]} 77. Qd5 {[%clk 0:00:16]}  Bf6 {[%clk 0:00:11]} 78. Bc4 {[%clk 0:00:16]}  Kh6 {[%clk 0:00:12]} 79. Bb5 {[%clk 0:00:16]}  Qe7 {[%clk 0:00:12]} 80. Bd7 {[%clk 0:00:16]}  Qf8 {[%clk 0:00:12]} 81. Be6 {[%clk 0:00:16]}  Bg7 {[%clk 0:00:12]} 82. Qd7 {[%clk 0:00:16]}  Qf6 {[%clk 0:00:13]} 83. Bd5 {[%clk 0:00:16]}  Kh7 {[%clk 0:00:13]} 84. Qe8 {[%clk 0:00:15]}  Qe5 {[%clk 0:00:14]} 85. Bg8+ {[%clk 0:00:13]}  Kh6 {[%clk 0:00:14]} 86. Qd8 {[%clk 0:00:14]}  Bf6 {[%clk 0:00:13]} 87. Qc8 {[%clk 0:00:14]}  Qe7 {[%clk 0:00:13]} 88. Be6 {[%clk 0:00:13]}  Kg7 {[%clk 0:00:13]} 89. Qc4 {[%clk 0:00:13]}  Be5 {[%clk 0:00:13]} 90. Bd5 {[%clk 0:00:14]}  Kh6 {[%clk 0:00:13]} 91. Qb5 {[%clk 0:00:15]}  Bd6 {[%clk 0:00:14]} 92. Qc6 {[%clk 0:00:15]}  Qf6 {[%clk 0:00:14]} 93. Bc4 {[%clk 0:00:15]}  Qe5 {[%clk 0:00:14]} 94. Qd7 {[%clk 0:00:15]}  Be7 {[%clk 0:00:15]} 95. Be6 {[%clk 0:00:15]}  Kg7 {[%clk 0:00:15]} 96. Qxe7+ {[%clk 0:00:15]}  Kh6 {[%clk 0:00:12]} 97. Qg5+ {[%clk 0:00:15]}  Kh7 {[%clk 0:00:12]} 98. Bf7 {[%clk 0:00:15]}  Qd6 {[%clk 0:00:12]} 99. Be8 {[%clk 0:00:14]}  Kg7 {[%clk 0:00:11]} 100. Bb5 {[%clk 0:00:11]}  Kh7 {[%clk 0:00:12]} 101. Be2 {[%clk 0:00:11]}  Kg7 {[%clk 0:00:12]} 102. Bxh5 {[%clk 0:00:11]} 1-0


[Site "https://www.chess.com"]

[Event "Titled Tuesday Blitz October 11 Early 2022"]
[White "Vaibhav Jayant Raut"]
[Black "Dehtiarov, Roman"]
[WhiteFideId "5089034"]
[BlackFideId "14186640"]
[WhiteElo "2147"]
[BlackElo "2200"]
[Result "1-0"]
[Round "07"]
[TimeControl "180+1"]
[Date "2022.10.12"]
[WhiteClock "0:00:08"]
[BlackClock "0:00:04"]

1. Nf3 {[%clk 0:03:00]}  Nf6 {[%clk 0:02:59]} 2. g3 {[%clk 0:03:01]}  d5 {[%clk 0:02:59]} 3. Bg2 {[%clk 0:03:01]}  c5 {[%clk 0:02:58]} 4. O-O {[%clk 0:03:02]}  Nc6 {[%clk 0:02:59]} 5. d3 {[%clk 0:03:02]}  e5 {[%clk 0:02:59]} 6. Nbd2 {[%clk 0:03:02]}  Be7 {[%clk 0:02:58]} 7. e4 {[%clk 0:03:03]}  d4 {[%clk 0:02:58]} 8. a4 {[%clk 0:03:03]}  O-O {[%clk 0:02:56]} 9. Nc4 {[%clk 0:03:03]}  Qc7 {[%clk 0:02:56]} 10. Nh4 {[%clk 0:03:03]}  Be6 {[%clk 0:02:50]} 11. b3 {[%clk 0:02:58]}  Nd7 {[%clk 0:02:41]} 12. Nf5 {[%clk 0:02:57]}  Bxf5 {[%clk 0:02:41]} 13. exf5 {[%clk 0:02:58]}  f6 {[%clk 0:02:41]} 14. Qh5 {[%clk 0:02:48]}  Nb6 {[%clk 0:02:32]} 15. Re1 {[%clk 0:02:44]}  Nb4 {[%clk 0:02:28]} 16. Re4 {[%clk 0:02:29]}  Nxc4 {[%clk 0:02:04]} 17. bxc4 {[%clk 0:02:26]}  Bd6 {[%clk 0:02:03]} 18. Rh4 {[%clk 0:02:25]}  h6 {[%clk 0:01:59]} 19. Bxh6 {[%clk 0:02:11]}  gxh6 {[%clk 0:01:56]} 20. Rg4+ {[%clk 0:02:10]}  Kh8 {[%clk 0:01:51]} 21. Rg6 {[%clk 0:02:09]}  Rf7 {[%clk 0:01:52]} 22. Re1 {[%clk 0:01:46]}  Raf8 {[%clk 0:01:30]} 23. Re4 {[%clk 0:01:45]}  Rh7 {[%clk 0:01:29]} 24. Reg4 {[%clk 0:01:43]}  Qf7 {[%clk 0:01:12]} 25. Qh4 {[%clk 0:01:35]}  h5 {[%clk 0:01:06]} 26. Re4 {[%clk 0:01:29]}  Na2 {[%clk 0:01:01]} 27. Re1 {[%clk 0:01:19]}  Nc3 {[%clk 0:00:58]} 28. Bf3 {[%clk 0:01:15]}  Be7 {[%clk 0:00:44]} 29. Bxh5 {[%clk 0:01:12]}  Rg8 {[%clk 0:00:40]} 30. Qg4 {[%clk 0:01:12]}  Qf8 {[%clk 0:00:31]} 31. Qf3 {[%clk 0:01:09]}  Bd8 {[%clk 0:00:23]} 32. Rxg8+ {[%clk 0:00:56]}  Qxg8 {[%clk 0:00:23]} 33. Bg6 {[%clk 0:00:56]}  Rc7 {[%clk 0:00:13]} 34. Qh5+ {[%clk 0:00:51]}  Kg7 {[%clk 0:00:13]} 35. f4 {[%clk 0:00:46]}  Qh8 {[%clk 0:00:11]} 36. Qg4 {[%clk 0:00:46]}  Kf8 {[%clk 0:00:09]} 37. fxe5 {[%clk 0:00:46]}  fxe5 {[%clk 0:00:10]} 38. f6 {[%clk 0:00:44]}  Bxf6 {[%clk 0:00:08]} 39. Rf1 {[%clk 0:00:38]}  Ke7 {[%clk 0:00:07]} 40. Qf5 {[%clk 0:00:34]}  Qg7 {[%clk 0:00:06]} 41. g4 {[%clk 0:00:34]}  Ne2+ {[%clk 0:00:04]} 42. Kh1 {[%clk 0:00:32]}  Nf4 {[%clk 0:00:05]} 43. Bh5 {[%clk 0:00:30]}  Qg5 {[%clk 0:00:04]} 44. Qh7+ {[%clk 0:00:25]}  Kd6 {[%clk 0:00:04]} 45. Qe4 {[%clk 0:00:26]}  Be7 {[%clk 0:00:03]} 46. a5 {[%clk 0:00:20]}  Bf6 {[%clk 0:00:03]} 47. a6 {[%clk 0:00:19]}  b6 {[%clk 0:00:04]} 48. Rg1 {[%clk 0:00:19]}  Re7 {[%clk 0:00:04]} 49. Qa8 {[%clk 0:00:17]}  Rd7 {[%clk 0:00:04]} 50. Qb8+ {[%clk 0:00:17]}  Ke7 {[%clk 0:00:04]} 51. Qe8+ {[%clk 0:00:16]}  Kd6 {[%clk 0:00:05]} 52. Qa8 {[%clk 0:00:17]}  Be7 {[%clk 0:00:04]} 53. Re1 {[%clk 0:00:16]}  Ke6 {[%clk 0:00:05]} 54. Be8 {[%clk 0:00:14]}  Rd8 {[%clk 0:00:04]} 55. Qc6+ {[%clk 0:00:11]}  Bd6 {[%clk 0:00:04]} 56. Bh5 {[%clk 0:00:09]}  Ke7 {[%clk 0:00:05]} 57. Qb7+ {[%clk 0:00:09]}  Rd7 {[%clk 0:00:05]} 58. Qe4 {[%clk 0:00:10]}  Nxh5 {[%clk 0:00:05]} 59. gxh5 {[%clk 0:00:08]}  Qxh5 {[%clk 0:00:06]} 60. Rg1 {[%clk 0:00:07]}  Kd8 {[%clk 0:00:06]} 61. Rg8+ {[%clk 0:00:07]}  Ke7 {[%clk 0:00:05]} 62. Rg7+ {[%clk 0:00:05]}  Ke8 {[%clk 0:00:04]} 63. Qa8+ {[%clk 0:00:05]}  Rd8 {[%clk 0:00:03]} 64. Rg8+ {[%clk 0:00:05]}  Kf7 {[%clk 0:00:04]} 65. Qxd8 {[%clk 0:00:03]}  Qf3+ {[%clk 0:00:04]} 66. Kg1 {[%clk 0:00:04]}  Qe3+ {[%clk 0:00:04]} 67. Kg2 {[%clk 0:00:04]}  Qe2+ {[%clk 0:00:04]} 68. Kh3 {[%clk 0:00:04]}  Qf3+ {[%clk 0:00:04]} 69. Rg3 {[%clk 0:00:04]}  Qf1+ {[%clk 0:00:04]} 70. Kg4 {[%clk 0:00:03]}  Be7 {[%clk 0:00:03]} 71. Qd5+ {[%clk 0:00:03]}  Ke8 {[%clk 0:00:03]} 72. Qc6+ {[%clk 0:00:03]}  Kd8 {[%clk 0:00:02]} 73. Qa8+ {[%clk 0:00:03]}  Kd7 {[%clk 0:00:03]} 74. Qf3 {[%clk 0:00:04]}  Qc1 {[%clk 0:00:02]} 75. Qf5+ {[%clk 0:00:04]}  Kd6 {[%clk 0:00:03]} 76. Qg6+ {[%clk 0:00:04]}  Kd7 {[%clk 0:00:03]} 77. Qf5+ {[%clk 0:00:04]}  Kd6 {[%clk 0:00:03]} 78. Rf3 {[%clk 0:00:05]}  Qg1+ {[%clk 0:00:03]} 79. Kh5 {[%clk 0:00:06]}  Qg7 {[%clk 0:00:03]} 80. Qg6+ {[%clk 0:00:06]}  Qxg6+ {[%clk 0:00:04]} 81. Kxg6 {[%clk 0:00:06]}  Bh4 {[%clk 0:00:03]} 82. Kf5 {[%clk 0:00:07]}  Be1 {[%clk 0:00:03]} 83. Ke4 {[%clk 0:00:07]}  Ke6 {[%clk 0:00:04]} 84. Rh3 {[%clk 0:00:08]}  Kf6 {[%clk 0:00:04]} 85. Rh6+ {[%clk 0:00:08]} 1-0


[Site "https://www.chess.com"]

[Event "Titled Tuesday Blitz October 11 Early 2022"]
[White "Veleshnja, Zino"]
[Black "Poltorak, Sebastian"]
[WhiteFideId "4701313"]
[BlackFideId "1199498"]
[WhiteElo "2167"]
[BlackElo "2232"]
[Result "1-0"]
[Round "07"]
[TimeControl "180+1"]
[Date "2022.10.12"]
[WhiteClock "0:00:14"]
[BlackClock "0:00:09"]

1. d4 {[%clk 0:03:00]}  Nf6 {[%clk 0:02:59]} 2. c4 {[%clk 0:03:01]}  e6 {[%clk 0:03:00]} 3. g3 {[%clk 0:03:01]}  Bb4+ {[%clk 0:02:58]} 4. Bd2 {[%clk 0:03:01]}  Qe7 {[%clk 0:02:58]} 5. Nf3 {[%clk 0:02:59]}  Bxd2+ {[%clk 0:02:56]} 6. Nbxd2 {[%clk 0:02:57]}  d6 {[%clk 0:02:55]} 7. Bg2 {[%clk 0:02:57]}  e5 {[%clk 0:02:55]} 8. e4 {[%clk 0:02:49]}  O-O {[%clk 0:02:54]} 9. O-O {[%clk 0:02:48]}  Bg4 {[%clk 0:02:44]} 10. d5 {[%clk 0:02:49]}  a5 {[%clk 0:02:41]} 11. h3 {[%clk 0:02:49]}  Bxf3 {[%clk 0:02:39]} 12. Nxf3 {[%clk 0:02:50]}  Nxe4 {[%clk 0:02:39]} 13. Nh4 {[%clk 0:02:46]}  Nc5 {[%clk 0:02:35]} 14. Qc2 {[%clk 0:02:42]}  g6 {[%clk 0:02:34]} 15. Rae1 {[%clk 0:02:42]}  f5 {[%clk 0:02:32]} 16. f4 {[%clk 0:02:34]}  Nbd7 {[%clk 0:02:30]} 17. Nf3 {[%clk 0:02:32]}  Rae8 {[%clk 0:02:26]} 18. Qc3 {[%clk 0:02:28]}  Qg7 {[%clk 0:02:21]} 19. Ng5 {[%clk 0:02:23]}  Kh8 {[%clk 0:02:17]} 20. Qxa5 {[%clk 0:02:18]}  b6 {[%clk 0:02:12]} 21. Qc3 {[%clk 0:02:17]}  h6 {[%clk 0:02:11]} 22. Nf3 {[%clk 0:01:58]}  Ne4 {[%clk 0:02:08]} 23. Rxe4 {[%clk 0:01:45]}  fxe4 {[%clk 0:02:08]} 24. Nh4 {[%clk 0:01:45]}  Kh7 {[%clk 0:02:00]} 25. Bxe4 {[%clk 0:01:45]}  exf4 {[%clk 0:01:59]} 26. Bxg6+ {[%clk 0:01:43]}  Kh8 {[%clk 0:01:59]} 27. Bxe8 {[%clk 0:01:23]}  Rxe8 {[%clk 0:01:52]} 28. Ng6+ {[%clk 0:01:07]}  Kh7 {[%clk 0:01:52]} 29. Qxg7+ {[%clk 0:01:07]}  Kxg7 {[%clk 0:01:53]} 30. Nxf4 {[%clk 0:01:08]}  Nf8 {[%clk 0:01:47]} 31. Nh5+ {[%clk 0:01:05]}  Kg6 {[%clk 0:01:46]} 32. Nf4+ {[%clk 0:01:00]}  Kg5 {[%clk 0:01:41]} 33. Kg2 {[%clk 0:00:52]}  h5 {[%clk 0:01:31]} 34. h4+ {[%clk 0:00:51]}  Kh6 {[%clk 0:01:32]} 35. Ne6 {[%clk 0:00:47]}  Ng6 {[%clk 0:01:18]} 36. Rf6 {[%clk 0:00:42]}  Kh7 {[%clk 0:01:11]} 37. Rf7+ {[%clk 0:00:36]}  Kh6 {[%clk 0:01:10]} 38. Ng5 {[%clk 0:00:34]}  Ne5 {[%clk 0:01:08]} 39. Rxc7 {[%clk 0:00:31]}  Ng4 {[%clk 0:01:06]} 40. Nf7+ {[%clk 0:00:22]}  Kg6 {[%clk 0:01:04]} 41. Nxd6 {[%clk 0:00:23]}  Re3 {[%clk 0:00:40]} 42. Rc6 {[%clk 0:00:18]}  Kf6 {[%clk 0:00:35]} 43. Rxb6 {[%clk 0:00:18]}  Ke5 {[%clk 0:00:35]} 44. c5 {[%clk 0:00:17]}  Re2+ {[%clk 0:00:35]} 45. Kf1 {[%clk 0:00:17]}  Rc2 {[%clk 0:00:33]} 46. Nb7 {[%clk 0:00:14]}  Ke4 {[%clk 0:00:31]} 47. Re6+ {[%clk 0:00:12]}  Kf3 {[%clk 0:00:29]} 48. Ke1 {[%clk 0:00:09]}  Ne3 {[%clk 0:00:29]} 49. Rxe3+ {[%clk 0:00:09]}  Kxe3 {[%clk 0:00:30]} 50. Kd1 {[%clk 0:00:08]}  Rd2+ {[%clk 0:00:22]} 51. Kc1 {[%clk 0:00:09]}  Kd3 {[%clk 0:00:21]} 52. d6 {[%clk 0:00:07]}  Rf2 {[%clk 0:00:17]} 53. b4 {[%clk 0:00:04]}  Kc3 {[%clk 0:00:15]} 54. Kd1 {[%clk 0:00:04]}  Kd3 {[%clk 0:00:06]} 55. Ke1 {[%clk 0:00:05]}  Rh2 {[%clk 0:00:06]} 56. d7 {[%clk 0:00:05]}  Ke3 {[%clk 0:00:06]} 57. Kf1 {[%clk 0:00:04]}  Kf3 {[%clk 0:00:07]} 58. Ke1 {[%clk 0:00:04]}  Ke3 {[%clk 0:00:07]} 59. Kd1 {[%clk 0:00:04]}  Rd2+ {[%clk 0:00:07]} 60. Kc1 {[%clk 0:00:04]}  Rxd7 {[%clk 0:00:08]} 61. c6 {[%clk 0:00:05]}  Rc7 {[%clk 0:00:08]} 62. b5 {[%clk 0:00:05]}  Kd4 {[%clk 0:00:08]} 63. a4 {[%clk 0:00:06]}  Kc4 {[%clk 0:00:07]} 64. Nd6+ {[%clk 0:00:06]}  Kc5 {[%clk 0:00:07]} 65. Ne8 {[%clk 0:00:07]}  Rc8 {[%clk 0:00:07]} 66. Nf6 {[%clk 0:00:06]}  Kb4 {[%clk 0:00:07]} 67. Nd5+ {[%clk 0:00:06]}  Kxa4 {[%clk 0:00:06]} 68. Nb6+ {[%clk 0:00:06]}  Kxb5 {[%clk 0:00:07]} 69. Nxc8 {[%clk 0:00:07]}  Kxc6 {[%clk 0:00:07]} 70. Ne7+ {[%clk 0:00:07]}  Kd6 {[%clk 0:00:08]} 71. Nf5+ {[%clk 0:00:08]}  Ke5 {[%clk 0:00:09]} 72. Ne3 {[%clk 0:00:09]}  Ke4 {[%clk 0:00:09]} 73. Nf1 {[%clk 0:00:09]}  Kf3 {[%clk 0:00:10]} 74. Kd1 {[%clk 0:00:10]}  Kf2 {[%clk 0:00:11]} 75. Kd2 {[%clk 0:00:10]}  Kxf1 {[%clk 0:00:11]} 76. Ke3 {[%clk 0:00:11]}  Kg2 {[%clk 0:00:11]} 77. Kf4 {[%clk 0:00:12]}  Kh3 {[%clk 0:00:08]} 78. Kg5 {[%clk 0:00:12]}  Kxg3 {[%clk 0:00:09]} 79. Kxh5 {[%clk 0:00:13]}  Kf4 {[%clk 0:00:09]} 80. Kg6 {[%clk 0:00:14]} 1-0


[Site "https://www.chess.com"]

[Event "Titled Tuesday Blitz October 11 Early 2022"]
[White "Vignesh, N R"]
[Black "Torres Boch, Jose Francisco"]
[WhiteFideId "25012215"]
[BlackFideId "2278383"]
[WhiteElo "2386"]
[BlackElo "2073"]
[Result "1-0"]
[Round "07"]
[TimeControl "180+1"]
[Date "2022.10.12"]
[WhiteClock "0:00:48"]
[BlackClock "0:00:04"]

1. e4 {[%clk 0:03:00]}  e5 {[%clk 0:02:58]} 2. Nf3 {[%clk 0:03:01]}  Nc6 {[%clk 0:02:59]} 3. Bb5 {[%clk 0:03:01]}  a6 {[%clk 0:02:59]} 4. Ba4 {[%clk 0:03:01]}  Nf6 {[%clk 0:02:59]} 5. O-O {[%clk 0:03:01]}  Be7 {[%clk 0:03:00]} 6. Re1 {[%clk 0:03:01]}  b5 {[%clk 0:03:00]} 7. Bb3 {[%clk 0:03:02]}  d6 {[%clk 0:03:01]} 8. c3 {[%clk 0:03:02]}  O-O {[%clk 0:03:00]} 9. h3 {[%clk 0:03:03]}  Nb8 {[%clk 0:03:00]} 10. d4 {[%clk 0:03:03]}  Nbd7 {[%clk 0:03:00]} 11. Nbd2 {[%clk 0:03:03]}  Bb7 {[%clk 0:03:00]} 12. Bc2 {[%clk 0:03:01]}  Re8 {[%clk 0:02:48]} 13. a4 {[%clk 0:03:00]}  Bf8 {[%clk 0:02:36]} 14. Bd3 {[%clk 0:02:59]}  c6 {[%clk 0:02:29]} 15. b3 {[%clk 0:02:57]}  exd4 {[%clk 0:02:10]} 16. cxd4 {[%clk 0:02:56]}  c5 {[%clk 0:02:08]} 17. axb5 {[%clk 0:02:54]}  axb5 {[%clk 0:02:04]} 18. Rxa8 {[%clk 0:02:55]}  Qxa8 {[%clk 0:02:04]} 19. Bxb5 {[%clk 0:02:55]}  cxd4 {[%clk 0:01:53]} 20. Nxd4 {[%clk 0:02:49]}  d5 {[%clk 0:01:53]} 21. exd5 {[%clk 0:02:33]}  Rxe1+ {[%clk 0:01:47]} 22. Qxe1 {[%clk 0:02:32]}  Bxd5 {[%clk 0:01:48]} 23. N2f3 {[%clk 0:02:29]}  Bc5 {[%clk 0:01:46]} 24. Bf1 {[%clk 0:02:13]}  Ne4 {[%clk 0:01:36]} 25. Be3 {[%clk 0:02:11]}  Ndf6 {[%clk 0:01:34]} 26. b4 {[%clk 0:02:08]}  Bb6 {[%clk 0:01:29]} 27. b5 {[%clk 0:02:06]}  h6 {[%clk 0:01:28]} 28. Nf5 {[%clk 0:02:03]}  Ba5 {[%clk 0:01:21]} 29. Qa1 {[%clk 0:02:00]}  Qd8 {[%clk 0:01:19]} 30. Ne7+ {[%clk 0:01:57]}  Kh7 {[%clk 0:01:10]} 31. Nxd5 {[%clk 0:01:56]}  Nxd5 {[%clk 0:01:10]} 32. Qe5 {[%clk 0:01:51]}  Nef6 {[%clk 0:00:57]} 33. Bd4 {[%clk 0:01:43]}  Bc7 {[%clk 0:00:54]} 34. Qf5+ {[%clk 0:01:40]}  Kg8 {[%clk 0:00:49]} 35. Ne5 {[%clk 0:01:34]}  Ne7 {[%clk 0:00:38]} 36. Qd3 {[%clk 0:01:34]}  Qb8 {[%clk 0:00:31]} 37. Nc6 {[%clk 0:01:25]}  Nxc6 {[%clk 0:00:27]} 38. bxc6 {[%clk 0:01:26]}  Nh5 {[%clk 0:00:22]} 39. Qf5 {[%clk 0:01:20]}  g6 {[%clk 0:00:18]} 40. Qf3 {[%clk 0:01:17]}  Nf4 {[%clk 0:00:18]} 41. Be3 {[%clk 0:01:14]}  h5 {[%clk 0:00:16]} 42. g3 {[%clk 0:01:13]}  Ne6 {[%clk 0:00:16]} 43. Bc4 {[%clk 0:01:11]}  Qe8 {[%clk 0:00:16]} 44. h4 {[%clk 0:01:10]}  Qe7 {[%clk 0:00:15]} 45. Kg2 {[%clk 0:01:08]}  Ng7 {[%clk 0:00:16]} 46. Bg5 {[%clk 0:01:05]}  Qe8 {[%clk 0:00:15]} 47. Bd5 {[%clk 0:00:53]}  Nf5 {[%clk 0:00:15]} 48. Bf4 {[%clk 0:00:51]}  Qd8 {[%clk 0:00:13]} 49. Bxc7 {[%clk 0:00:50]}  Qxc7 {[%clk 0:00:14]} 50. Qf4 {[%clk 0:00:47]}  Qxf4 {[%clk 0:00:12]} 51. gxf4 {[%clk 0:00:48]}  Ne7 {[%clk 0:00:11]} 52. c7 {[%clk 0:00:48]}  Kf8 {[%clk 0:00:11]} 53. Bb7 {[%clk 0:00:48]}  Kg7 {[%clk 0:00:10]} 54. c8=Q {[%clk 0:00:48]}  Nxc8 {[%clk 0:00:10]} 55. Bxc8 {[%clk 0:00:49]}  Kf6 {[%clk 0:00:10]} 56. Kf3 {[%clk 0:00:49]}  Ke7 {[%clk 0:00:08]} 57. Ke4 {[%clk 0:00:49]}  Kf8 {[%clk 0:00:05]} 58. Ke5 {[%clk 0:00:49]}  Kg7 {[%clk 0:00:06]} 59. Bd7 {[%clk 0:00:48]}  Kg8 {[%clk 0:00:04]} 60. Kf6 {[%clk 0:00:48]}  Kf8 {[%clk 0:00:04]} 61. Bb5 {[%clk 0:00:48]} 1-0


[Site "https://www.chess.com"]

[Event "Titled Tuesday Blitz October 11 Early 2022"]
[White "Vokhidov, Shamsiddin"]
[Black "Csonka, Balazs"]
[WhiteFideId "14204223"]
[BlackFideId "742910"]
[WhiteElo "2619"]
[BlackElo "2404"]
[Result "1-0"]
[Round "07"]
[TimeControl "180+1"]
[Date "2022.10.11"]
[WhiteClock "0:01:19"]
[BlackClock "0:00:02"]

1. c4 {[%clk 0:03:00]}  c6 {[%clk 0:02:54]} 2. d4 {[%clk 0:03:00]}  d5 {[%clk 0:02:54]} 3. Nf3 {[%clk 0:03:01]}  Nf6 {[%clk 0:02:53]} 4. e3 {[%clk 0:03:00]}  e6 {[%clk 0:02:48]} 5. Nbd2 {[%clk 0:02:59]}  c5 {[%clk 0:02:47]} 6. cxd5 {[%clk 0:02:58]}  exd5 {[%clk 0:02:45]} 7. dxc5 {[%clk 0:02:58]}  Bxc5 {[%clk 0:02:46]} 8. a3 {[%clk 0:02:58]}  O-O {[%clk 0:02:38]} 9. b4 {[%clk 0:02:57]}  Bb6 {[%clk 0:02:39]} 10. Bb2 {[%clk 0:02:57]}  Nc6 {[%clk 0:02:39]} 11. Nb3 {[%clk 0:02:56]}  a5 {[%clk 0:02:29]} 12. b5 {[%clk 0:02:53]}  a4 {[%clk 0:02:28]} 13. Nbd2 {[%clk 0:02:51]}  Na5 {[%clk 0:01:34]} 14. Bd3 {[%clk 0:02:48]}  Bg4 {[%clk 0:01:24]} 15. h3 {[%clk 0:02:43]}  Bxf3 {[%clk 0:01:16]} 16. Nxf3 {[%clk 0:02:43]}  Nb3 {[%clk 0:01:14]} 17. Rb1 {[%clk 0:02:41]}  Ba5+ {[%clk 0:01:12]} 18. Ke2 {[%clk 0:02:37]}  Re8 {[%clk 0:00:57]} 19. Bc2 {[%clk 0:02:29]}  Ne4 {[%clk 0:00:37]} 20. Bxb3 {[%clk 0:02:25]}  axb3 {[%clk 0:00:38]} 21. Qxb3 {[%clk 0:02:23]}  Rc8 {[%clk 0:00:30]} 22. Rhd1 {[%clk 0:02:16]}  Nc3+ {[%clk 0:00:27]} 23. Bxc3 {[%clk 0:02:16]}  Rxc3 {[%clk 0:00:28]} 24. Qxd5 {[%clk 0:02:16]}  Qxd5 {[%clk 0:00:27]} 25. Rxd5 {[%clk 0:02:16]}  Rxa3 {[%clk 0:00:27]} 26. b6 {[%clk 0:02:16]}  Bc3 {[%clk 0:00:15]} 27. Rd7 {[%clk 0:02:14]}  Rb8 {[%clk 0:00:15]} 28. Rc1 {[%clk 0:02:05]}  h6 {[%clk 0:00:13]} 29. Kf1 {[%clk 0:02:01]}  Ba5 {[%clk 0:00:08]} 30. Rb1 {[%clk 0:01:48]}  Ra2 {[%clk 0:00:06]} 31. Ne5 {[%clk 0:01:47]}  Rc8 {[%clk 0:00:03]} 32. Rxb7 {[%clk 0:01:41]}  Rcc2 {[%clk 0:00:03]} 33. Nd3 {[%clk 0:01:35]}  Rd2 {[%clk 0:00:03]} 34. Ra7 {[%clk 0:01:20]}  Rxd3 {[%clk 0:00:01]} 35. b7 {[%clk 0:01:20]}  Rdd2 {[%clk 0:00:01]} 36. b8=Q+ {[%clk 0:01:20]}  Kh7 {[%clk 0:00:02]} 37. Rxf7 {[%clk 0:01:19]} 1-0


[Site "https://www.chess.com"]